bitfinex/quotes_BTCUSD_20250829
["timestamp","ask_amount","ask_price","bid_price","bid_amount"]
[1756457821085,1.9022833,109900.0,109890.0,4.756e-05]
[1756457821292,1.89380947,109900.0,109890.0,4.756e-05]
[1756457821508,1.85574365,109900.0,109890.0,4.756e-05]
[1756457821710,1.85559365,109900.0,109890.0,4.756e-05]
[1756457822348,1.83604763,109900.0,109890.0,4.756e-05]
[1756457822786,1.83619763,109900.0,109890.0,4.756e-05]
[1756457823001,1.86341663,109900.0,109890.0,4.756e-05]
[1756457823208,1.77512031,109900.0,109890.0,4.756e-05]
[1756457824214,1.79466912,109900.0,109890.0,4.756e-05]
[1756457824491,1.79481912,109900.0,109890.0,4.756e-05]
[1756457825060,0.75885178,109900.0,109890.0,4.756e-05]
[1756457825274,1.79481912,109900.0,109890.0,4.756e-05]
[1756457825490,1.88311544,109900.0,109890.0,4.756e-05]
[1756457826306,0.8469981,109900.0,109890.0,4.756e-05]
[1756457826457,1.90347227,109900.0,109890.0,4.756e-05]
[1756457827966,2.93943961,109900.0,109890.0,1e-08]
[1756457828232,2.96378646,109900.0,109890.0,1e-08]
[1756457828446,2.96378516,109900.0,109890.0,1e-08]
[1756457829312,0.89885048,109900.0,109890.0,1e-08]
[1756457829528,7.97714467,109900.0,109890.0,1e-08]
[1756457829969,0.52204988,109860.0,109850.0,0.02120918]
[1756457830181,0.55385844,109860.0,109850.0,0.01868596]
[1756457830396,1.58982578,109860.0,109850.0,0.02375596]
[1756457830823,1.58981778,109860.0,109850.0,0.02375596]
[1756457831460,1.58981778,109860.0,109850.0,0.02475596]
[1756457831673,0.55385044,109860.0,109850.0,0.02475596]
[1756457831890,0.55380746,109860.0,109850.0,0.02475596]
[1756457832168,1.5897748,109860.0,109850.0,0.02575596]
[1756457832377,0.21379879,109860.0,109850.0,0.29611873]
[1756457832594,0.21379586,109860.0,109850.0,0.29611873]
[1756457832818,0.20744672,109860.0,109850.0,0.11405228]
[1756457833494,0.19051568,109860.0,109850.0,0.29611873]
[1756457833959,0.19051568,109860.0,109850.0,0.46163873]
[1756457834176,0.19051568,109860.0,109850.0,0.27957228]
[1756457834729,0.19051568,109860.0,109850.0,0.46163873]
[1756457835418,0.18204988,109860.0,109850.0,0.46163873]
[1756457837321,1.21801555,109870.0,109850.0,0.46163873]
[1756457837528,0.18204988,109860.0,109850.0,0.45863873]
[1756457838130,0.18204988,109860.0,109850.0,0.46163873]
[1756457838342,0.18204988,109860.0,109850.0,0.45963873]
[1756457839304,0.18204988,109860.0,109850.0,0.46063873]
[1756457839522,0.18204988,109860.0,109850.0,0.29511873]
[1756457839797,1.21801722,109860.0,109850.0,0.27865228]
[1756457840015,1.21801722,109860.0,109850.0,0.11405228]
[1756457840229,1.21801722,109860.0,109850.0,0.27849228]
[1756457840458,1.21801722,109860.0,109850.0,0.11305228]
[1756457840705,0.25847018,109860.0,109850.0,0.01868596]
[1756457840920,0.25847018,109860.0,109850.0,0.02375596]
[1756457840921,1.26893656,109860.0,109850.0,0.02375596]
[1756457841137,0.23296922,109860.0,109850.0,0.02575596]
[1756457841575,0.26034422,109860.0,109850.0,0.02375596]
[1756457841793,1.29631156,109860.0,109850.0,0.02375596]
[1756457842014,1.29631156,109860.0,109850.0,0.02475596]
[1756457842234,1.29630656,109860.0,109850.0,0.02675596]
[1756457842468,1.29630656,109860.0,109850.0,0.02475596]
[1756457842866,0.26033922,109860.0,109850.0,0.02575596]
[1756457843105,1.29630656,109860.0,109850.0,0.02575596]
[1756457843325,1.29653656,109860.0,109850.0,0.02575596]
[1756457843552,0.26033922,109860.0,109850.0,0.02575596]
[1756457843764,1.29630656,109860.0,109850.0,0.02575596]
[1756457843976,1.29653656,109860.0,109850.0,0.02068596]
[1756457844864,1.39117709,109860.0,109850.0,0.02068596]
[1756457845088,2.7010116,109860.0,109850.0,0.02068596]
[1756457845522,1.66504426,109860.0,109850.0,0.02068596]
[1756457845981,0.64332577,109860.0,109850.0,0.02068596]
[1756457846205,1.67929311,109860.0,109850.0,0.01968596]
[1756457846427,1.76758943,109860.0,109850.0,0.01968596]
[1756457846649,1.80940368,109860.0,109850.0,0.01868596]
[1756457846867,1.81040368,109860.0,109850.0,0.01868596]
[1756457847083,2.84637102,109860.0,109850.0,0.01868596]
[1756457847607,2.61436022,109860.0,109850.0,0.01868596]
[1756457847824,2.7964101,109860.0,109850.0,0.01868596]
[1756457848038,2.7974101,109860.0,109850.0,0.01868596]
[1756457848476,0.72547542,109860.0,109850.0,0.01868596]
[1756457848687,1.76144276,109860.0,109850.0,0.01868596]
[1756457848907,1.78632739,109860.0,109850.0,0.01868596]
[1756457849342,2.82229473,109860.0,109850.0,0.01868596]
[1756457849798,0.75036005,109860.0,109850.0,0.01868596]
[1756457850013,1.78632739,109860.0,109850.0,0.01868596]
[1756457850481,1.69788107,109860.0,109850.0,0.01868596]
[1756457850680,1.86392107,109860.0,109850.0,0.01868596]
[1756457851198,1.84967222,109860.0,109850.0,0.01868596]
[1756457852452,1.81795302,109860.0,109850.0,0.01868596]
[1756457852683,1.84965409,109860.0,109850.0,0.01868596]
[1756457852893,1.93795041,109860.0,109850.0,0.01868596]
[1756457853140,1.93795034,109860.0,109850.0,0.01868596]
[1756457854842,1.9521989,109860.0,109850.0,0.01868596]
[1756457857580,1.97168558,109860.0,109850.0,0.01868596]
[1756457858398,1.971688,109860.0,109850.0,0.01868596]
[1756457860181,1.971688,109860.0,109850.0,0.02176596]
[1756457860394,1.971688,109860.0,109850.0,0.01868596]
[1756457861510,2.99340678,109860.0,109850.0,0.01868596]
[1756457861726,1.95743944,109860.0,109850.0,0.01868596]
[1756457861957,1.95744251,109860.0,109850.0,0.01868596]
[1756457862347,1.95759251,109860.0,109850.0,0.01868596]
[1756457862585,2.99355985,109860.0,109850.0,0.01868596]
[1756457863067,2.99356101,109860.0,109850.0,0.01868596]
[1756457863481,7.99356101,109860.0,109850.0,0.01868596]
[1756457863947,7.9935593,109860.0,109850.0,0.01868596]
[1756457864387,7.9935593,109860.0,109850.0,1e-08]
[1756457864755,8.00780892,109860.0,109850.0,1e-08]
[1756457865169,5.93587424,109860.0,109850.0,1e-08]
[1756457865392,8.00780892,109860.0,109850.0,1e-08]
[1756457865571,5.93487424,109860.0,109850.0,1e-08]
[1756457865773,8.00680892,109860.0,109850.0,1e-08]
[1756457865955,7.84276892,109860.0,109850.0,1e-08]
[1756457866159,8.00884892,109860.0,109850.0,1e-08]
[1756457866374,8.01184892,109860.0,109850.0,1e-08]
[1756457866626,8.01169892,109860.0,109850.0,1e-08]
[1756457866828,8.00969892,109860.0,109850.0,1e-08]
[1756457867440,8.03411517,109860.0,109850.0,1e-08]
[1756457868071,8.03127517,109860.0,109850.0,1e-08]
[1756457868280,8.00885892,109860.0,109850.0,1e-08]
[1756457868485,8.03527517,109860.0,109850.0,1e-08]
[1756457869117,6.83206783,109860.0,109850.0,1e-08]
[1756457869329,6.97537158,109860.0,109850.0,1e-08]
[1756457869526,6.99978783,109860.0,109850.0,1e-08]
[1756457870773,7.00058783,109860.0,109850.0,1e-08]
[1756457871212,6.98633821,109860.0,109850.0,1e-08]
[1756457871665,8.02230555,109860.0,109850.0,1e-08]
[1756457872308,0.18206645,109850.0,109840.0,0.0065866]
[1756457872527,7.58423791,109850.0,109840.0,0.0065866]
[1756457872727,2.58423791,109850.0,109840.0,0.0086966]
[1756457872959,2.61161991,109850.0,109840.0,0.0086966]
[1756457873159,1.38490473,109850.0,109840.0,0.0086966]
[1756457873387,1.43310489,109850.0,109840.0,0.0086966]
[1756457873584,1.46486294,109850.0,109840.0,0.0086966]
[1756457873796,0.2606956,109850.0,109840.0,0.0086966]
[1756457874013,1.46490294,109850.0,109840.0,0.0086966]
[1756457874679,1.46590294,109850.0,109840.0,0.0086966]
[1756457874925,0.4309356,109850.0,109840.0,0.0086966]
[1756457875143,1.46690294,109850.0,109840.0,0.0086966]
[1756457875577,0.4309356,109850.0,109840.0,0.0086966]
[1756457875785,1.46690294,109850.0,109840.0,0.0086966]
[1756457876209,1.29766294,109850.0,109840.0,0.0086966]
[1756457876426,1.46582294,109850.0,109840.0,0.0086966]
[1756457876869,1.46486294,109850.0,109840.0,0.0086966]
[1756457877481,1.55315926,109850.0,109840.0,0.0086966]
[1756457878133,1.55299926,109850.0,109840.0,0.0096966]
[1756457878346,1.44521384,109850.0,109840.0,0.0096966]
[1756457880114,2.50092762,109850.0,109840.0,0.0096966]
[1756457880328,1.46473142,109850.0,109840.0,0.0096966]
[1756457880764,0.40920764,109850.0,109840.0,0.0096966]
[1756457880981,0.24120764,109850.0,109840.0,0.0096966]
[1756457881194,1.61717498,109850.0,109840.0,0.0096966]
[1756457881421,1.82879666,109850.0,109840.0,0.0096966]
[1756457881633,1.82902666,109850.0,109840.0,0.0096966]
[1756457882321,1.82879666,109850.0,109840.0,0.0096966]
[1756457882553,1.78517498,109850.0,109840.0,0.0096966]
[1756457882793,1.78517161,109850.0,109840.0,0.0096966]
[1756457883012,0.74920427,109850.0,109840.0,0.0096966]
[1756457883237,1.78517161,109850.0,109840.0,0.0096966]
[1756457883454,1.78540161,109850.0,109840.0,0.0096966]
[1756457883660,0.83773059,109850.0,109840.0,0.0096966]
[1756457883888,1.87369793,109850.0,109840.0,0.0096966]
[1756457884507,1.70546793,109850.0,109840.0,0.0096966]
[1756457884724,1.78525161,109850.0,109840.0,0.0096966]
[1756457885354,0.58120427,109850.0,109840.0,0.0096966]
[1756457885647,0.58120427,109850.0,109840.0,0.19177962]
[1756457885648,0.55382227,109850.0,109840.0,0.19177962]
[1756457885791,1.58978961,109850.0,109840.0,0.19177962]
[1756457886006,1.24978961,109850.0,109840.0,0.0096966]
[1756457886452,0.21382227,109850.0,109840.0,0.19177962]
[1756457886659,1.24978961,109850.0,109840.0,0.19181962]
[1756457886876,1.2497879,109850.0,109840.0,0.19181962]
[1756457887079,1.2497879,109850.0,109840.0,0.0097366]
[1756457887080,1.23285146,109850.0,109840.0,0.0097366]
[1756457887726,0.19688412,109850.0,109840.0,0.0097366]
[1756457887950,1.23285146,109850.0,109840.0,0.0097366]
[1756457888615,1.23285146,109850.0,109840.0,0.19181962]
[1756457888824,1.32114778,109850.0,109840.0,0.0097366]
[1756457889045,1.23285146,109850.0,109840.0,0.0097366]
[1756457889277,0.19688412,109850.0,109840.0,0.0097366]
[1756457889508,1.40061085,109850.0,109840.0,0.0097366]
[1756457889722,1.39226324,109850.0,109840.0,0.0097366]
[1756457890242,1.39249324,109850.0,109840.0,0.0044966]
[1756457890522,1.39249324,109850.0,109840.0,0.0076266]
[1756457890771,1.39226324,109850.0,109840.0,0.0097366]
[1756457891009,1.40918178,109850.0,109840.0,0.0097366]
[1756457891233,1.40941178,109850.0,109840.0,0.0097366]
[1756457892128,1.40941178,109850.0,109840.0,0.0076266]
[1756457892349,1.43731766,109850.0,109840.0,0.0044966]
[1756457892553,1.77731766,109850.0,109840.0,0.0044966]
[1756457892980,1.76039356,109850.0,109840.0,0.0044966]
[1756457893194,1.77730996,109850.0,109840.0,0.0076266]
[1756457893698,1.77730996,109850.0,109840.0,0.0044966]
[1756457893909,0.74134262,109850.0,109840.0,0.0097366]
[1756457894154,1.77730996,109850.0,109840.0,0.0076266]
[1756457895005,1.74901408,109850.0,109840.0,0.0097366]
[1756457895215,1.58129408,109850.0,109840.0,0.0097366]
[1756457895433,1.74893408,109850.0,109840.0,0.0097366]
[1756457896065,0.71296674,109850.0,109840.0,0.0097366]
[1756457896281,1.74897408,109850.0,109840.0,0.0097366]
[1756457896712,1.74897524,109850.0,109840.0,0.0097366]
[1756457896928,1.74920524,109850.0,109840.0,0.0076266]
[1756457897145,1.74920524,109850.0,109840.0,0.0097366]
[1756457898074,1.74897524,109850.0,109840.0,0.0097366]
[1756457900014,0.54533639,109850.0,109840.0,0.0097366]
[1756457900227,1.58130373,109850.0,109840.0,0.0097366]
[1756457901128,0.54533639,109850.0,109840.0,0.0097366]
[1756457901345,1.58118312,109850.0,109840.0,0.0097366]
[1756457901568,1.75716767,109850.0,109840.0,0.0097366]
[1756457902238,1.75739767,109850.0,109840.0,0.0097366]
[1756457902452,1.75716767,109850.0,109840.0,0.0097366]
[1756457903112,0.72143033,109850.0,109840.0,0.0097366]
[1756457903329,1.75739767,109850.0,109840.0,0.0097366]
[1756457903467,1.73412915,109850.0,109840.0,0.0097366]
[1756457903683,0.72144316,109850.0,109840.0,0.0097366]
[1756457903899,1.7574105,109850.0,109840.0,0.0097366]
[1756457904109,1.7574105,109850.0,109840.0,0.0076266]
[1756457904504,1.80714816,109850.0,109840.0,0.0076266]
[1756457906380,0.72124776,109850.0,109840.0,0.0095766]
[1756457906584,1.7569851,109850.0,109840.0,0.0095766]
[1756457906712,1.7572151,109850.0,109840.0,0.0095766]
[1756457906930,1.75086557,109850.0,109840.0,0.0095766]
[1756457907155,0.55392938,109850.0,109840.0,0.0095766]
[1756457907374,1.75697672,109850.0,109840.0,0.0095766]
[1756457910161,1.75697672,109850.0,109840.0,0.0076266]
[1756457913339,1.75697672,109850.0,109840.0,0.0095766]
[1756457913766,1.75697672,109850.0,109840.0,0.0044966]
[1756457913988,1.75698748,109850.0,109840.0,0.0044966]
[1756457914394,1.78994208,109850.0,109840.0,0.0044966]
[1756457914599,1.78994208,109850.0,109840.0,0.0075466]
[1756457915212,1.75698874,109850.0,109840.0,0.0075466]
[1756457915646,1.58990874,109850.0,109840.0,0.0094966]
[1756457915850,1.58967874,109850.0,109840.0,0.0094966]
[1756457916507,1.59176874,109850.0,109840.0,0.00071542]
[1756457916734,0.5558014,109850.0,109840.0,0.00071542]
[1756457916948,1.59176874,109850.0,109840.0,0.00071542]
[1756457917392,1.59177968,109850.0,109840.0,0.00071542]
[1756457918252,0.18208302,109840.0,109830.0,0.18213942]
[1756457918460,1.24982686,109840.0,109830.0,0.18713942]
[1756457919517,1.24982686,109840.0,109830.0,0.18913942]
[1756457919726,1.24982686,109840.0,109830.0,0.19013942]
[1756457919949,0.21385952,109840.0,109830.0,0.19013942]
[1756457920174,1.24982686,109840.0,109830.0,0.19013942]
[1756457921470,1.33812318,109840.0,109830.0,0.00804]
[1756457921727,1.33812318,109840.0,109830.0,0.1901396]
[1756457921941,1.33812318,109840.0,109830.0,0.00804]
[1756457922172,1.33812966,109840.0,109830.0,0.1901396]
[1756457922525,1.24983334,109840.0,109830.0,0.1901396]
[1756457923329,0.213866,109840.0,109830.0,0.1901396]
[1756457923531,1.24983334,109840.0,109830.0,0.1901396]
[1756457924575,1.24984955,109840.0,109830.0,0.1901396]
[1756457924784,1.25193955,109840.0,109830.0,0.3554996]
[1756457924988,0.30426853,109840.0,109830.0,0.3554996]
[1756457925202,0.30217853,109840.0,109830.0,0.3554996]
[1756457925405,1.24984955,109840.0,109830.0,0.3554996]
[1756457927224,1.25193955,109840.0,109830.0,0.1734]
[1756457927599,1.24984955,109840.0,109830.0,0.1734]
[1756457927827,0.21388221,109840.0,109830.0,0.3554996]
[1756457928017,1.24984955,109840.0,109830.0,0.3554996]
[1756457934748,0.19692292,109840.0,109830.0,0.3554996]
[1756457934950,1.24985039,109840.0,109830.0,0.3544196]
[1756457935362,0.21388305,109840.0,109830.0,0.3544196]
[1756457935618,1.24985039,109840.0,109830.0,0.3544196]
[1756457936224,1.25182039,109840.0,109830.0,0.3544196]
[1756457937333,0.21388305,109840.0,109830.0,0.3544196]
[1756457937545,1.24985039,109840.0,109830.0,0.3544196]
[1756457938491,0.21388305,109840.0,109830.0,0.3544196]
[1756457938687,1.24985039,109840.0,109830.0,0.3544196]
[1756457939096,0.21585305,109840.0,109830.0,0.3544196]
[1756457939359,1.380081,109840.0,109830.0,0.3544196]
[1756457939758,1.382051,109840.0,109830.0,0.3544196]
[1756457940181,1.19799798,109840.0,109830.0,0.44271592]
[1756457940381,1.19799798,109840.0,109830.0,0.44219592]
[1756457940556,1.19799693,109840.0,109830.0,0.44219592]
[1756457940761,0.03179855,109840.0,109830.0,0.44219592]
[1756457940969,1.19799693,109840.0,109830.0,0.44219592]
[1756457941385,1.19163798,109840.0,109830.0,0.44219592]
[1756457941590,1.375691,109840.0,109830.0,0.44223592]
[1756457941792,1.19360798,109840.0,109830.0,0.44223592]
[1756457942393,0.0274096,109840.0,109830.0,0.44223592]
[1756457942639,1.19163798,109840.0,109830.0,0.44223592]
[1756457943043,1.375691,109840.0,109830.0,0.27843592]
[1756457943215,1.2819043,109840.0,109830.0,0.43926592]
[1756457943411,0.01044958,109840.0,109830.0,0.44246592]
[1756457943640,1.17664796,109840.0,109830.0,0.44246592]
[1756457944043,1.16816838,109840.0,109830.0,0.44246592]
[1756457944406,1.35872848,109840.0,109830.0,0.27858592]
[1756457944597,1.17664556,109840.0,109830.0,0.44246592]
[1756457945416,1.17467556,109840.0,109830.0,0.44246592]
[1756457945835,0.00847718,109840.0,109830.0,0.44246592]
[1756457946032,1.17467556,109840.0,109830.0,0.44246592]
[1756457948678,0.00847718,109840.0,109830.0,0.44246592]
[1756457948880,1.17467556,109840.0,109830.0,0.44246592]
[1756457949368,1.17664556,109840.0,109830.0,0.44246592]
[1756457949785,1.35872858,109840.0,109830.0,0.44222592]
[1756457950784,1.17664556,109840.0,109830.0,0.44222592]
[1756457951038,1.35872858,109840.0,109830.0,0.44222592]
[1756457951249,1.17664556,109840.0,109830.0,0.44222592]
[1756457951602,1.01961599,109840.0,109830.0,0.44222592]
[1756457952778,0.0169505,109840.0,109830.0,0.44222592]
[1756457952987,1.18314888,109840.0,109830.0,0.44222592]
[1756457953199,0.0169505,109840.0,109830.0,0.44222592]
[1756457953407,1.18314888,109840.0,109830.0,0.44222592]
[1756457954457,0.0169505,109840.0,109830.0,1.6084243]
[1756457954682,0.18252648,109860.0,109850.0,0.18206645]
[1756457954933,0.18206645,109850.0,109840.0,0.0032]
[1756457955165,1.36521536,109850.0,109840.0,0.43673934]
[1756457955374,1.36521536,109850.0,109840.0,0.43883934]
[1756457955613,1.36521536,109850.0,109840.0,0.43794791]
[1756457956238,1.34826483,109850.0,109840.0,0.43794791]
[1756457956451,1.34826483,109850.0,109840.0,0.27478791]
[1756457956677,1.34826483,109850.0,109840.0,0.43794791]
[1756457956921,0.18206645,109850.0,109840.0,0.43794791]
[1756457957144,1.34826483,109850.0,109840.0,0.43794791]
[1756457957737,1.34826483,109850.0,109840.0,0.43994791]
[1756457957944,1.34826483,109850.0,109840.0,0.43982791]
[1756457958250,1.34826483,109850.0,109840.0,0.44182791]
[1756457958395,1.34826483,109850.0,109840.0,0.44166791]
[1756457958988,0.18206645,109850.0,109840.0,0.44166791]
[1756457959412,1.2184661,109850.0,109840.0,0.27878791]
[1756457959628,1.24058161,109850.0,109840.0,0.16684]
[1756457960447,1.26795861,109850.0,109840.0,0.16684]
[1756457960864,0.21158345,109850.0,109840.0,0.34892302]
[1756457961081,1.2479831,109850.0,109840.0,0.16684]
[1756457961288,1.26491608,109850.0,109840.0,0.16684]
[1756457962359,1.26491608,109850.0,109840.0,0.16652]
[1756457962542,1.27430589,109850.0,109840.0,0.16648]
[1756457963166,1.27430589,109850.0,109840.0,0.004]
[1756457963377,1.27430589,109850.0,109840.0,0.16648]
[1756457963592,1.28277236,109850.0,109840.0,0.16648]
[1756457963832,1.27430589,109850.0,109840.0,0.16648]
[1756457964029,1.28277244,109850.0,109840.0,0.16648]
[1756457964440,1.3500939,109850.0,109840.0,0.004]
[1756457964628,1.28277244,109850.0,109840.0,0.1664]
[1756457964981,1.28277422,109850.0,109840.0,0.1664]
[1756457966177,1.28277422,109850.0,109840.0,0.004]
[1756457966418,1.28277422,109850.0,109840.0,0.16636]
[1756457966618,1.37107054,109850.0,109840.0,0.16636]
[1756457969272,1.37107054,109850.0,109840.0,0.004]
[1756457969474,1.53343054,109850.0,109840.0,0.004]
[1756457970088,1.44513422,109850.0,109840.0,0.004]
[1756457973678,1.27973422,109850.0,109840.0,0.004]
[1756457975479,1.2797263,109850.0,109840.0,0.004]
[1756457975712,1.4420863,109850.0,109840.0,0.004]
[1756457975927,0.24332665,109850.0,109840.0,0.004]
[1756457976059,1.2797263,109850.0,109840.0,0.00933]
[1756457977163,1.2797263,109850.0,109840.0,0.00609]
[1756457977369,1.2797263,109850.0,109840.0,0.004]
[1756457978263,1.4147093,109850.0,109840.0,0.004]
[1756457978869,1.41470972,109850.0,109840.0,0.004]
[1756457980256,1.46700671,109850.0,109840.0,0.004]
[1756457981533,1.5969781,109850.0,109840.0,0.004]
[1756457982148,1.54772111,109850.0,109840.0,0.004]
[1756457982313,1.54467932,109850.0,109840.0,0.004]
[1756457982704,1.88771932,109850.0,109840.0,0.004]
[1756457983216,1.88463932,109850.0,109840.0,0.004]
[1756457983422,1.88463932,109850.0,109840.0,0.00933]
[1756457984295,1.72231932,109850.0,109840.0,0.00933]
[1756457985752,1.71385483,109850.0,109840.0,0.00933]
[1756457985954,1.7207031,109850.0,109840.0,0.00933]
[1756457987392,1.7185631,109850.0,109840.0,0.00933]
[1756457987596,1.7207031,109850.0,109840.0,0.00933]
[1756457988037,1.7185631,109850.0,109840.0,0.00933]
[1756457988878,1.7205331,109850.0,109840.0,0.00933]
[1756457989286,1.7205331,109850.0,109840.0,0.00843627]
[1756457989499,1.72053802,109850.0,109840.0,0.00843627]
[1756457989706,1.72053802,109850.0,109840.0,0.00310627]
[1756457990114,1.72360802,109850.0,109840.0,0.00310627]
[1756457990530,1.88588802,109850.0,109840.0,0.00310627]
[1756457990937,1.88281802,109850.0,109840.0,0.00310627]
[1756457992302,1.88588802,109850.0,109840.0,0.00310627]
[1756457993137,1.95121107,109850.0,109840.0,0.00310627]
[1756457995118,1.94814107,109850.0,109840.0,0.00310627]
[1756457995329,1.72053802,109850.0,109840.0,0.00310627]
[1756457995535,1.72053802,109850.0,109840.0,0.00525627]
[1756457995742,1.72053802,109850.0,109840.0,0.00835627]
[1756457996197,0.55416698,109850.0,109840.0,0.00835627]
[1756457996399,1.72058332,109850.0,109840.0,0.00835627]
[1756457996522,0.55421228,109850.0,109840.0,0.00835627]
[1756457996745,1.72058332,109850.0,109840.0,0.00835627]
[1756457996948,0.55421228,109850.0,109840.0,0.00835627]
[1756457997214,1.72058332,109850.0,109840.0,0.00835627]
[1756457998791,0.55421228,109850.0,109840.0,0.00835627]
[1756457999000,1.72058332,109850.0,109840.0,0.00835627]
[1756457999662,1.72058332,109850.0,109840.0,0.00310627]
[1756457999945,1.79051477,109850.0,109840.0,0.00310627]
[1756458000155,1.95582477,109850.0,109840.0,0.00310627]
[1756458000603,3.12219581,109850.0,109840.0,0.00310627]
[1756458000806,1.97536636,109850.0,109840.0,0.00310627]
[1756458001014,2.00274536,109850.0,109840.0,0.00310627]
[1756458002258,3.1691164,109850.0,109840.0,0.00310627]
[1756458002473,2.00274536,109850.0,109840.0,0.00310627]
[1756458003129,1.84050536,109850.0,109840.0,0.00310627]
[1756458003518,2.00274536,109850.0,109840.0,0.00310627]
[1756458005510,1.98479515,109850.0,109840.0,0.00310627]
[1756458005715,2.00271929,109850.0,109840.0,0.00310627]
[1756458005917,1.99964929,109850.0,109840.0,0.00310627]
[1756458006124,2.00271945,109850.0,109840.0,0.00310627]
[1756458009026,1.97938858,109850.0,109840.0,0.00310627]
[1756458009300,2.0027224,109850.0,109840.0,0.00310627]
[1756458010139,3.16909344,109850.0,109840.0,0.00310627]
[1756458010283,2.0027224,109850.0,109840.0,0.00310627]
[1756458011316,1.9996524,109850.0,109840.0,0.00310627]
[1756458011518,2.0027224,109850.0,109840.0,0.00310627]
[1756458013396,1.9996524,109850.0,109840.0,0.00310627]
[1756458013977,2.0027224,109850.0,109840.0,0.00310627]
[1756458014586,3.02932128,109850.0,109840.0,0.00310627]
[1756458014767,3.19148128,109850.0,109840.0,0.00310627]
[1756458015220,3.21591203,109850.0,109840.0,0.002]
[1756458015424,0.52208302,109840.0,109830.0,4e-05]
[1756458015635,3.15664051,109840.0,109830.0,4e-05]
[1756458015828,3.16168051,109840.0,109830.0,4e-05]
[1756458016088,3.14079186,109840.0,109830.0,4e-05]
[1756458016240,3.16622698,109840.0,109830.0,4e-05]
[1756458016652,3.16622227,109840.0,109830.0,4e-05]
[1756458017035,3.00406227,109840.0,109830.0,4e-05]
[1756458017243,0.83348019,109840.0,109830.0,4e-05]
[1756458017485,3.16622227,109840.0,109830.0,4e-05]
[1756458018042,3.16722227,109840.0,109830.0,4e-05]
[1756458018242,3.16918227,109840.0,109830.0,4e-05]
[1756458018517,3.16611227,109840.0,109830.0,4e-05]
[1756458019489,3.14657068,109840.0,109830.0,4e-05]
[1756458019912,3.14973068,109840.0,109830.0,4e-05]
[1756458020616,2.98761068,109840.0,109830.0,4e-05]
[1756458020820,3.14657068,109840.0,109830.0,4e-05]
[1756458022767,2.98445068,109840.0,109830.0,4e-05]
[1756458022964,3.14657068,109840.0,109830.0,4e-05]
[1756458023167,2.98445068,109840.0,109830.0,4e-05]
[1756458023364,3.14657068,109840.0,109830.0,4e-05]
[1756458025067,0.03935926,109840.0,109830.0,0.00528]
[1756458025285,0.21686171,109840.0,109830.0,0.00528]
[1756458025492,0.03477869,109840.0,109830.0,0.1873796]
[1756458025693,1.20114973,109840.0,109830.0,0.1873796]
[1756458025939,1.38323275,109840.0,109830.0,0.1873796]
[1756458026143,1.38323275,109840.0,109830.0,0.27567592]
[1756458026296,0.21686171,109840.0,109830.0,0.27567592]
[1756458026517,1.38321132,109840.0,109830.0,0.27567592]
[1756458026720,1.1698131,109840.0,109830.0,0.27567592]
[1756458027364,1.24206968,109840.0,109830.0,0.27567592]
[1756458027839,0.02327887,109840.0,109830.0,0.27567592]
[1756458028052,0.02427887,109840.0,109830.0,0.34571592]
[1756458028264,0.02427887,109840.0,109830.0,0.37309092]
[1756458028471,0.02327887,109840.0,109830.0,0.37309092]
[1756458028679,0.02327887,109840.0,109830.0,0.37409092]
[1756458029122,0.02327887,109840.0,109830.0,0.37509092]
[1756458029341,0.02328011,109840.0,109830.0,0.37409092]
[1756458029563,0.53162955,109860.0,109840.0,0.18208302]
[1756458029776,1.21877424,109850.0,109840.0,0.24037934]
[1756458029981,1.05999345,109850.0,109840.0,0.24037934]
[1756458030398,1.2420599,109850.0,109840.0,0.24250934]
[1756458030399,1.2420599,109850.0,109840.0,0.24561934]
[1756458030618,0.02328566,109850.0,109840.0,0.24561934]
[1756458030799,1.05999345,109850.0,109840.0,0.24561934]
[1756458031227,1.2420599,109850.0,109840.0,0.40769934]
[1756458031433,1.23570927,109850.0,109840.0,0.24761934]
[1756458031653,1.23570927,109850.0,109840.0,0.09353632]
[1756458031844,0.19900148,109850.0,109840.0,0.26061632]
[1756458032008,1.23570927,109850.0,109840.0,0.26061632]
[1756458032214,1.23570927,109850.0,109840.0,0.44269934]
[1756458032416,0.19900148,109850.0,109840.0,0.44069934]
[1756458032614,1.23570927,109850.0,109840.0,0.44069934]
[1756458032817,1.23570927,109850.0,109840.0,0.25861632]
[1756458033221,1.23570927,109850.0,109840.0,0.25961632]
[1756458033456,1.23570927,109850.0,109840.0,0.25661632]
[1756458033800,1.23570927,109850.0,109840.0,0.09453632]
[1756458034006,1.23785927,109850.0,109840.0,0.08929632]
[1756458034683,1.49770202,109850.0,109840.0,0.001]
[1756458034912,1.49770202,109850.0,109840.0,0.00413]
[1756458034913,1.2442057,109850.0,109840.0,0.00413]
[1756458035126,0.36953791,109850.0,109840.0,0.00724]
[1756458035356,1.4062457,109850.0,109840.0,0.00413]
[1756458035580,1.4062457,109850.0,109840.0,0.00313]
[1756458035785,1.4062457,109850.0,109840.0,0.00213]
[1756458036003,0.18208302,109840.0,109830.0,4e-05]
[1756458036206,2.27243363,109840.0,109830.0,4e-05]
[1756458036428,2.28408926,109840.0,109830.0,4e-05]
[1756458036875,2.6008086,109840.0,109830.0,4e-05]
[1756458037098,2.71237194,109840.0,109830.0,4e-05]
[1756458037327,0.63895636,109840.0,109830.0,4e-05]
[1756458037558,2.71237194,109840.0,109830.0,4e-05]
[1756458038285,2.71237194,109840.0,109830.0,0.00104]
[1756458038714,2.72083161,109840.0,109830.0,0.00104]
[1756458038851,2.72083161,109840.0,109830.0,0.00204]
[1756458039870,0.64741603,109840.0,109830.0,0.00204]
[1756458040084,2.72083161,109840.0,109830.0,0.00204]
[1756458041637,2.88287161,109840.0,109830.0,0.00204]
[1756458042644,0.34,109810.0,109800.0,0.41421043]
[1756458042853,1.37670779,109810.0,109800.0,0.50250675]
[1756458043061,1.37670779,109810.0,109800.0,0.34261568]
[1756458043062,1.55884056,109810.0,109800.0,0.34261568]
[1756458043452,0.52213277,109810.0,109800.0,0.34261568]
[1756458043681,1.55884056,109810.0,109800.0,0.34261568]
[1756458044107,1.55931687,109810.0,109800.0,0.34261568]
[1756458044319,1.56031687,109810.0,109800.0,0.34661568]
[1756458044504,1.56031687,109810.0,109800.0,0.34972568]
[1756458044705,1.3781841,109810.0,109800.0,0.34972568]
[1756458044915,1.0381841,109810.0,109800.0,0.51676568]
[1756458045317,1.22031687,109810.0,109800.0,0.51676568]
[1756458045539,1.0381841,109810.0,109800.0,0.51676568]
[1756458046184,1.0381841,109810.0,109800.0,0.51680568]
[1756458046415,1.22031687,109810.0,109800.0,0.33465632]
[1756458046625,1.22031687,109810.0,109800.0,0.51680568]
[1756458046839,1.27877391,109810.0,109800.0,0.10257632]
[1756458047249,1.27031687,109810.0,109800.0,0.10257632]
[1756458047487,1.27877336,109810.0,109800.0,0.10257632]
[1756458047862,1.27777336,109810.0,109800.0,0.09357632]
[1756458048018,1.27777336,109810.0,109800.0,0.09757632]